Cogmind - Beta 15 @@@ ROGUE MODE // 2025.07.07 @ 20:03:31 Player: cloodskull Result: Destroyed by G-67 Veteran with Plasma Rifle Performance ------------- Evolutions (5) 2500 Regions Visited (10) 2000 Robots Destroyed (166) 830 Value Destroyed (6746) 6746 Prototype IDs (32) 640 Alien Tech Used (0) 0 Bonus (3271) 3271 TOTAL SCORE: 15987 Bonus ------- High Alert Combat Kills 2671 Follower Combat Kills 100 Entered Garrisons 200 Aligned with FarCom 300 Cogmind --------- Core Integrity 0/1000 Matter 271/300 Energy 97/100 System Corruption 50% Temperature Cool (0) Movement Core (50) Location -5/Factory Parts ------- > --- POWER (2) -------- (None) > --- PROPULSION (4) --- (None) > --- UTILITY (8) ------ (None) > --- WEAPON (3) ------- Power Sword > --- INVENTORY (5) ---- Wheel Small Matter Pod (50) Weapon Mount Remote Force Field Peak State ------------ > --- POWER ------------ Improved Deuterium Engine Reinforced Deuterium Engine > --- PROPULSION ------- Improved Heavy Treads Improved Heavy Treads > --- UTILITY ---------- Advanced Heat Sink High-capacity Storage Unit Improved Targeting Computer Improved Target Analyzer Improved Core Shielding Improved Medium Armor Plating > --- WEAPON ----------- Cooled Plasma Cannon Cooled Plasma Cannon Heavy Machine Gun > --- INVENTORY -------- Light Deuterium Engine Improved Heavy Treads Armored Huge Wheel Advanced Heat Sink Coolant Injector Compact Matter Pod Improved Light Armor Plating Relay Coupler [Sentry] Dynamic Insulation System System Restoration Module Proton Cannon Cooled Plasma Cannon Heavy Machine Gun Enhanced Gauss Cannon Missile Launcher Power Maul [Rating: 83] Favorites ----------- Power Improved Deuterium Engine Engine Improved Deuterium Engine Power Core Nuclear Core Propulsion Improved Heavy Treads Treads Improved Heavy Treads Leg Flexi-carbon Leg Wheel Compact Wheel Flight Unit VTOL Module Utility High-capacity Storage Unit Device Improved Heat Sink Storage High-capacity Storage Unit Processor Improved Targeting Computer Protection Reactive Plating Weapon Gauss Rifle Energy Gun Heavy EM Shotgun Energy Cannon Cooled Plasma Cannon Ballistic Gun Gauss Rifle Ballistic Cannon Enhanced Gauss Cannon Launcher Missile Launcher Impact Weapon Great Maul Slashing Weapon Power Sword Build | -11 -10 -9 -9 -9 -8 -8 -7 -7 -6 -5 ------- Run | Yrd Mat Mat Min Exi Min Mat Fac Gar Fac Fac Slots Evolved 10 | . . 2 . . . 2 2 . 2 2 Power 1 | . . . . . . . . . 1 . Propulsion 2 | . . 2 . . . . . . . . Utility 6 | . . . . . . 2 1 . 1 2 Weapon 1 | . . . . . . . 1 . . . Parts Attached 128 | 6 3 10 3 3 4 13 9 18 21 38 Power 15 | 1 1 1 1 . . 2 . 2 4 3 Engine 10 | 1 1 . 1 . . . . 2 3 2 Core 5 | . . 1 . . . 2 . . 1 1 Reactor . | . . . . . . . . . . . Propulsion 27 | 2 . 2 . . 2 3 1 4 3 10 Treads 13 | 2 . 1 . . . 2 . 4 2 2 Leg 1 | . . . . . . . . . . 1 Wheel 12 | . . 1 . . 2 1 1 . 1 6 Hover . | . . . . . . . . . . . Flight 1 | . . . . . . . . . . 1 Utility 45 | 1 2 2 1 1 1 3 3 6 8 17 Device 19 | . . . . . . 2 2 4 3 8 Storage 5 | 1 1 . . 1 . . . . . 2 Processor 8 | . . 1 . . . . 1 . 2 4 Hackware . | . . . . . . . . . . . Protection 13 | . 1 1 1 . 1 1 . 2 3 3 Artifact . | . . . . . . . . . . . Weapon 41 | 2 . 5 1 2 1 5 5 6 6 8 Energy Gun 8 | . . 3 1 . . 2 1 . . 1 Energy Cannon 9 | . . 1 . 2 1 1 1 . 3 . Ballistic Gun 11 | 2 . 1 . . . . 3 2 2 1 Ballistic Cannon 5 | . . . . . . 2 . 2 1 . Launcher 3 | . . . . . . . . 2 . 1 Special Weapon . | . . . . . . . . . . . Impact Weapon 2 | . . . . . . . . . . 2 Slashing Weapon 3 | . . . . . . . . . . 3 Piercing Weapon . | . . . . . . . . . . . Special Melee Weapon . | . . . . . . . . . . . Unidentified Prototypes 9 | . . 2 . 2 . 1 . 1 1 2 Parts Lost 63 | . . 1 7 . 3 1 . 6 19 26 Power 11 | . . . 1 . 1 . . 1 4 4 Propulsion 18 | . . . 2 . 1 . . 2 4 9 Utility 18 | . . . 1 . 1 . . 3 6 7 Weapon 16 | . . 1 3 . . 1 . . 5 6 Highest Loss Streak 13 | . . 1 7 . 3 1 . 1 10 13 To Critical Strikes 1 | . . . . . . . . . . 1 Average Backups 12 | 2 4 9 12 10 8 12 17 16 13 4 Power . | . 1 1 . . . . 1 . . . Propulsion 1 | . 2 1 1 1 . 1 3 1 2 . Utility 4 | . . 3 5 5 4 3 6 6 5 1 Weapon 5 | . 1 3 4 4 3 6 6 7 5 2 Tool/Special . | . . . . . . . . . . . Unused Backups 27 | . . 6 . . . 4 1 8 6 2 Power 1 | . . . . . . . . 1 . . Propulsion 3 | . . . . . . . . 2 1 . Utility 11 | . . 1 . . . 1 . 3 4 2 Weapon 12 | . . 5 . . . 3 1 2 1 . Tool/Special . | . . . . . . . . . . . Average Slot Usage (%) 74 | . 91 81 84 49 64 96 92 78 71 46 Engine 5 | . 14 4 . 11 4 . . 6 10 3 Core 2 | . . 6 9 . . 8 7 . . 1 Treads 12 | . 28 20 19 . . 15 15 14 10 2 Wheel 5 | . . 5 11 11 17 18 8 . . 5 Device 9 | . . . . . . 17 15 8 9 9 Storage 7 | . 14 11 11 11 11 9 7 7 5 2 Processor 5 | . . 7 . . . . 6 7 9 5 Protection 6 | . 6 3 10 11 10 8 7 7 6 4 Energy Gun 3 | . . 11 19 . . 13 8 . . . Energy Cannon 2 | . . . . 5 11 3 . . 10 . Ballistic Gun 9 | . 28 9 1 . 10 1 13 19 4 . Ballistic Cannon 1 | . . . . . . . . 2 . 2 Peak Build Rating 83 | 6 7 19 19 18 16 25 47 72 83 75 Average Rating 43 | 4 6 13 17 12 12 23 38 62 68 40 On Entrance 19 | . 6 7 19 12 16 13 25 44 72 2 Naked Turns 333 | . . . . . . . . . 218 115 Heaviest Build 133 | 11 27 41 41 63 63 66 78 87 104 133 Greatest Support 150 | 40 40 40 16 16 32 40 32 150 150 70 Greatest Overweight (x) 25 | . . 2 2 3 3 4 2 3 25 8 Average Overweight (x) . | . . 1 2 2 1 1 2 . . 1 Largest Inventory Capacity 25 | 8 15 15 15 20 20 20 20 20 20 25 Average Capacity 17 | 6 11 15 15 15 20 20 20 20 18 12 Most Carried 20 | 4 5 15 13 11 10 17 20 20 19 8 Average Carried 13 | 2 4 9 12 10 8 12 17 18 15 4 Final Capacity 20 | 8 15 15 15 20 20 20 20 20 5 5 Final Carried 20 | 4 5 13 8 10 8 16 20 20 5 4 Class Distribution -------------------- 34% | Mutant 20% | Scavenger-Tank 15% | Tank 11% | Scavenger-Mutant 9% | Gunner Dominant Class ---------------- Mutant | -10/Materials Mutant | -9/Materials Mutant | -9/Mines Mutant | -9/Exiles Mutant | -8/Mines Scavenger-Mutant | -8/Materials Gunner | -7/Factory Tank | -7/Garrison Scavenger-Tank | -6/Factory Mutant | -5/Factory Resources | -11 -10 -9 -9 -9 -8 -8 -7 -7 -6 -5 ----------- Run | Yrd Mat Mat Min Exi Min Mat Fac Gar Fac Fac Matter Collected 4643 | 198 151 174 41 . 95 471 264 1588 689 972 Remotely . | . . . . . . . . . . . Salvage Created 7602 | . 148 489 291 . 256 488 290 2294 1975 1371 Parts 389 | . 14 43 20 . 6 23 19 108 81 75 Haulers Intercepted 3 | . . 1 . . . 1 . . 1 . Recyclers Shooed 3 | . . 1 . . . . . . 1 1 Parts Field Recycled . | . . . . . . . . . . . Retrieved Matter . | . . . . . . . . . . . Parts Self-Destructed . | . . . . . . . . . . . Prevented . | . . . . . . . . . . . Kills | -11 -10 -9 -9 -9 -8 -8 -7 -7 -6 -5 ------- Run | Yrd Mat Mat Min Exi Min Mat Fac Gar Fac Fac Combat Hostiles Destroyed 141 | . 7 11 7 . 3 8 7 30 40 28 Melee 7 | . . . . . . . . . . 7 Guns 64 | . 7 10 6 . 1 5 6 22 3 4 Cannons 50 | . . . 1 . 2 2 . 6 27 12 AOE 12 | . . 1 . . . . 1 2 7 1 Classes Destroyed 19 | . 2 4 3 . . 1 1 4 3 1 Worker 9 | . . 1 . . . . 1 . 2 5 Builder 4 | . . 1 . . . . . . 1 2 Tunneler 1 | . . . 1 . . . . . . . Hauler 3 | . . 1 . . . 1 . . 1 . Recycler 4 | . . . 1 . 1 1 . . . 1 Operator 1 | . . . . . . . . . 1 . Watcher 2 | . . . . . . . . 1 1 . Swarmer 33 | . 5 4 5 . . 3 4 . 4 8 Cutter 2 | . . . . . . . . . 2 . Saboteur 3 | . . . . . . . . 1 1 1 Grunt 50 | . 2 3 . . 3 2 . 14 22 4 Brawler 5 | . . . . . . . . . 2 3 Duelist 7 | . . . . . . . . 2 4 1 Sentry 19 | . . 4 . . . 2 1 10 2 . Demolisher 2 | . . . 2 . . . . . . . Hunter 4 | . . . . . . 1 . 1 . 2 Programmer 15 | . . . . . . . 2 2 3 8 Heavy 1 | . . . . . . . . . . 1 Behemoth 1 | . . . . . . . . 1 . . Best Kill Streak 10 | . 4 10 3 . 3 2 2 3 7 9 Combat Bots Only 9 | . 4 7 3 . 2 2 2 3 6 9 Max Kills in Single Turn 2 | . 1 2 2 . 1 1 2 2 2 1 Gunslinging 1 | . . . 1 . . . . . . . Exploded 2 | . . 1 . . . . 1 2 2 1 Melee 1 | . . . . . . . . . . 1 Uniques/NPCs Destroyed . | . . . . . . . . . . . Combat | -11 -10 -9 -9 -9 -8 -8 -7 -7 -6 -5 -------- Run | Yrd Mat Mat Min Exi Min Mat Fac Gar Fac Fac Hostile Shots Fired 1265 | . 38 23 30 . 33 38 44 361 379 319 Missed 342 | . 11 6 1 . 10 8 15 100 107 84 Hits 923 | . 27 17 29 . 23 30 29 261 272 235 Melee 41 | . . . . . . . . 1 17 23 Projectile 882 | . 27 17 29 . 23 30 29 260 255 212 AOE 26 | . . . 23 . . . . . . 3 Critical Strikes 42 | . . . . . . . 2 2 16 22 Actively Blocked 2 | . . . . . . . . . 1 1 Damage Taken 14617 | . 223 250 1008 . 390 241 403 2390 4548 5164 Core 2253 | . 41 31 206 . 85 9 66 147 656 1012 Absorbed by Shields 873 | . . . . . . . 40 264 257 312 Reduced by Siege Mode 548 | . . . . . . . . 230 318 . Redirected to Shielding 72 | . . . . . . . . . 50 22 Ignored by Resistances 298 | . . . 14 . . 64 30 96 . 94 Regen/Repaired (Parts) 102 | . . . . . . 102 . . . . Core Remaining (%) 65 | 100 83 . . . 19 98 . 69 22 . Volleys Fired 438 | . 17 28 17 . 16 27 24 128 120 61 Largest 3 | . 2 2 2 . 2 2 3 3 3 2 Hottest 170 | . 40 90 91 . 91 136 150 120 170 100 Shots Fired 899 | . 34 55 33 . 32 54 58 316 240 77 Gun 544 | . 34 55 32 . 16 33 50 256 39 29 Cannon 338 | . . . 1 . 16 21 8 57 193 42 Launcher 17 | . . . . . . . . 3 8 6 Special . | . . . . . . . . . . . Kinetic 564 | . 34 45 6 . 16 15 30 291 68 59 Thermal 234 | . . 8 1 . 16 15 8 22 164 . Explosive 11 | . . . . . . . . 3 8 . Electromagnetic 90 | . . 2 26 . . 24 20 . . 18 Robot Hit Streak 52 | . 6 9 5 . 6 13 8 52 26 10 Robot Miss Streak 12 | . 2 2 4 . 4 4 2 2 5 12 Penetration Max 1 | . . . . . . . 1 1 1 1 Secondary Targets 8 | . . 1 2 . . . . 5 . . Max Gunslinging Chain 1 | . . 1 1 . . . . 1 . . Shots Hit Robots 699 | . 21 42 24 . 18 35 36 238 179 106 Core Hits 339 | . 8 27 16 . 8 15 16 91 86 72 Critical Kills 5 | . . . . . . . . 3 2 . Critical Parts Destroyed 11 | . . . . . . . 1 2 . 8 Critical Strikes 33 | . . . . . . . 1 13 6 13 Meltdown 2 | . . . . . . . . . 2 . Destroy 6 | . . . . . . . 1 5 . . Blast 12 | . . . . . . . . 8 4 . Corrupt 1 | . . . . . . . . . . 1 Smash 8 | . . . . . . . . . . 8 Sever 4 | . . . . . . . . . . 4 Melee Attacks 54 | . . . . . . . . . . 54 Impact 31 | . . . . . . . . . . 31 Slashing 23 | . . . . . . . . . . 23 Piercing . | . . . . . . . . . . . Sneak Attacks 5 | . . . . . . . . . . 5 Combat Hostiles . | . . . . . . . . . . . Follow-up Attacks . | . . . . . . . . . . . Damage Inflicted 20476 | . 265 490 358 . 357 618 788 5939 7550 4111 Guns 7732 | . 265 460 303 . 154 433 756 4348 630 383 Cannons 8537 | . . . 21 . 203 185 . 1409 5746 973 Explosions 1796 | . . 30 34 . . . 32 182 1129 389 Melee 2366 | . . . . . . . . . . 2366 Ramming 45 | . . . . . . . . . 45 . Kinetic 9188 | . 265 347 61 . 154 61 614 4978 1453 1255 Thermal 6444 | . . 115 55 . 203 185 32 779 4923 152 Explosive 1311 | . . . . . . . . 182 1129 . Electromagnetic 1122 | . . 28 242 . . 372 142 . . 338 Impact 1459 | . . . . . . . . . . 1459 Slashing 907 | . . . . . . . . . . 907 Piercing . | . . . . . . . . . . . Highest Corruption 50 | . . 3 3 3 3 1 . . 13 50 Average Corruption 6 | . . 2 3 3 3 1 . . 4 14 Corruption Purged 6 | . . . . . . . . . . 6 Corruption Blocked . | . . . . . . . . . . . Effects 111 | . . 13 8 11 5 2 . . 22 50 Message Errors 23 | . . 3 1 1 . 1 . . 5 12 Matter Fused 23 | . . 3 2 . 1 . . . 5 12 Heat Flow Errors 15 | . . 1 1 4 1 . . . . 8 Energy Discharges 19 | . . 2 2 2 1 . . . 4 8 Parts Rejected 2 | . . 1 . . . . . . . 1 Data Loss (minor) 11 | . . 1 . 3 1 . . . 3 3 Data Loss (major) 5 | . . 1 . 1 . 1 . . 1 1 Misfires 1 | . . . 1 . . . . . . . Alerts 4 | . . . . . 1 . . . 1 2 Misdirections 3 | . . . . . . . . . 2 1 Weapon Failures 5 | . . 1 1 . . . . . 1 2 Overload Shots 18 | . . . . . . . . . 18 . Effects 2 | . . . . . . . . . 2 . Energy Bleed 1 | . . . . . . . . . 1 . Short Circuit 1 | . . . . . . . . . 1 . Overflow Damage 852 | . . . . . . . . 23 120 709 Projectiles 143 | . . . . . . . . 23 120 . Explosions 54 | . . . . . . . . . . 54 Melee 655 | . . . . . . . . . . 655 Knockbacks 29 | . . . . . . . . 1 13 15 Impact 3 | . . . . . . . . . . 3 Kinetic 21 | . . . . . . . . 1 10 10 Secondary 5 | . . . . . . . . . 3 2 Self-Inflicted Damage 145 | . . 12 22 . . . 43 . 26 42 Shots 7 | . . 1 1 . . . 1 . 2 2 Rammed 6 | . . . . . . . . . 6 . Targets Rammed 6 | . . . . . . . . . 6 . Kicked . | . . . . . . . . . . . Crushed . | . . . . . . . . . . . Highest Temperature 465 | . 6 179 270 259 465 72 85 336 189 268 Average Temperature 81 | . 6 42 65 115 221 18 35 84 58 65 Received Heat Transfer 3120 | . 18 81 . . 207 27 13 644 1709 421 Effects 5 | . . . . . 4 . . 1 . . Shutdowns 1 | . . . . . 1 . . . . . Energy Bleed 1 | . . . . . 1 . . . . . Matter Decay 2 | . . . . . 1 . . 1 . . Damage (minor) 1 | . . . . . 1 . . . . . Siege Activations 27 | . . . . . . . . 14 13 . Total Turns 925 | . . . . . . . . 439 486 . Longest Duration 181 | . . . . . . . . 181 99 . Martial Activations . | . . . . . . . . . . . Shielding Activations . | . . . . . . . . . . . Robots Disrupted . | . . . . . . . . . . . Combat Hostiles . | . . . . . . . . . . . Robots Corrupted 7 | . . . . . . 1 . . . 6 Combat Hostiles 5 | . . . . . . 1 . . . 4 Parts Fried 10 | . . . . . . 3 . . . 7 Impact Corruptions 16 | . . . . . . . . . . 16 Robots Melted 4 | . . . . . . . . 1 3 . Combat Hostiles 3 | . . . . . . . . . 3 . Parts Melted 22 | . . . . . 1 2 . 5 13 1 Heat Transferred 9288 | . . 272 37 . 370 333 . 1760 6416 100 Parts Sabotaged . | . . . . . . . . . . . Parts Stolen . | . . . . . . . . . . . Parts Stripped . | . . . . . . . . . . . Power Chain Reactions 3 | . . 1 1 . . . 1 . . . Alert | -11 -10 -9 -9 -9 -8 -8 -7 -7 -6 -5 ------- Run | Yrd Mat Mat Min Exi Min Mat Fac Gar Fac Fac Maximum Alert Level 5 | . . 1 . . . . . 5 5 3 Low Security (%) 39 | 100 100 99 100 . 100 100 100 7 . . Level 1 10 | . . . . . . . . 34 . . Level 2 9 | . . . . . . . . 10 . 36 Level 3 13 | . . . . . . . . 9 . 63 Level 4 17 | . . . . . . . . 15 83 . Level 5 9 | . . . . . . . . 21 16 . High Security . | . . . . . . . . . . . Max Security . | . . . . . . . . . . . Peak Influence 2291 | . 155 190 121 . 40 81 131 2291 1823 909 Initial 1202 | . . 31 31 . . . . 14 1202 893 Average 632 | . 82 91 60 . 10 13 36 893 1423 748 Influence Increases 6296 | . 254 334 190 . 120 253 396 2437 1425 887 Destroy 0b10 Robot/C 2900 | . 140 220 140 . 60 160 140 680 800 560 Destroy 0b10 Robot/NC 150 | . . 15 10 . 5 10 5 35 30 40 Destroy Leader 488 | . 30 62 20 . 10 52 40 30 144 100 Allied During Kill 15 | . . . . . . . . 15 . . Successful Hack 41 | . 9 4 . . . . 14 . 14 . Disable Machine 255 | . . 15 . . 15 . 105 15 30 75 Anti-Garrison Action 1550 | . . . . . . . . 1550 . . Destroy Structure 252 | . . 3 5 . . 1 32 67 62 82 Lose Combat Pursuer 645 | . 75 15 15 . 30 30 60 45 345 30 Influence Decreases 5416 | . 179 329 260 10 120 253 375 167 1893 1830 Entered New Map 2129 | . . 44 49 10 . . . 7 1089 930 Time Decay 2591 | . 179 275 170 . 95 243 375 . 614 640 Lost Part 596 | . . 10 41 . 25 10 . 60 190 260 Lost Ally 100 | . . . . . . . . 100 . . Squads Dispatched 40 | . 1 . . . . 3 6 . 18 12 Investigation 1 | . . . . . . 1 . . . . Extermination 11 | . . . . . . . 2 . 4 5 Reinforcement 15 | . 1 . . . . 2 1 . 7 4 Assault 10 | . . . . . . . . . 7 3 Garrison 3 | . . . . . . . 3 . . . Intercept . | . . . . . . . . . . . Searches Triggered . | . . . . . . . . . . . Construction Impeded 2 | . . . . . . . . . 1 1 Haulers Reinforced 1 | . . . . . . . . . 1 . Active Scanning Responses . | . . . . . . . . . . . Cargo Convoy Interrupts . | . . . . . . . . . . . Stealth | -11 -10 -9 -9 -9 -8 -8 -7 -7 -6 -5 --------- Run | Yrd Mat Mat Min Exi Min Mat Fac Gar Fac Fac Distress Signals 10 | . 1 1 . . . 4 . 1 3 . Communications Jammed . | . . . . . . . . . . . Distress Signals . | . . . . . . . . . . . Times Spotted 209 | . 14 13 8 . 5 11 10 32 74 42 Peak Tracking Total 11 | . 8 5 3 . 3 3 4 3 11 9 Tactical Retreats 25 | . 2 1 1 . 1 1 2 2 14 1 Traps | -11 -10 -9 -9 -9 -8 -8 -7 -7 -6 -5 ------- Run | Yrd Mat Mat Min Exi Min Mat Fac Gar Fac Fac Traps Triggered 11 | . . 2 . . . 2 2 1 . 4 Indirectly . | . . . . . . . . . . . Trap Hack Attempts . | . . . . . . . . . . . Triggered . | . . . . . . . . . . . Disarmed . | . . . . . . . . . . . Reprogrammed . | . . . . . . . . . . . Reused . | . . . . . . . . . . . Traps Extracted . | . . . . . . . . . . . Installed . | . . . . . . . . . . . Triggered . | . . . . . . . . . . . Machines | -11 -10 -9 -9 -9 -8 -8 -7 -7 -6 -5 ---------- Run | Yrd Mat Mat Min Exi Min Mat Fac Gar Fac Fac Machines Disabled 18 | . . 1 . . 1 . 7 2 2 5 Max in Single Turn 5 | . . 1 . . 1 . 4 1 1 5 Garrison Relay 1 | . . . . . . . . 1 . . Machines Repaired . | . . . . . . . . . . . Machines Dismantled . | . . . . . . . . . . . Machines Sabotaged . | . . . . . . . . . . . Overloaded Fab Kills . | . . . . . . . . . . . Hacking | -11 -10 -9 -9 -9 -8 -8 -7 -7 -6 -5 --------- Run | Yrd Mat Mat Min Exi Min Mat Fac Gar Fac Fac Machines Accessed 23 | . 3 4 . 2 . 4 3 1 4 2 Terminals 17 | . 3 4 . . . 3 2 1 3 1 Fabricators 1 | . . . . . . . . . 1 . Repair Stations 1 | . . . . . . 1 . . . . Recycling Units . | . . . . . . . . . . . Scanalyzers 1 | . . . . . . . . . . 1 Garrison Access 1 | . . . . . . . 1 . . . Total Hacks 47 | . 6 15 . 3 . 9 3 1 7 3 Successful 26 | . 3 7 . 3 . 7 2 . 3 1 Failed 21 | . 3 8 . . . 2 1 1 4 2 Catastrophic 7 | . 1 2 . . . 2 . 1 1 . Database Lockouts . | . . . . . . . . . . . Manual 21 | . 5 5 . 1 . 3 2 1 3 1 Terminals 34 | . 6 15 . . . 5 2 1 4 1 Fabricators 3 | . . . . . . . . . 3 . Repair Stations 4 | . . . . . . 4 . . . . Recycling Units . | . . . . . . . . . . . Scanalyzers 2 | . . . . . . . . . . 2 Garrison Access 1 | . . . . . . . 1 . . . Terminal Hacks 9 | . 1 4 . 3 . . . . 1 . Record 3 | . . 1 . 2 . . . . . . Prototype ID Bank 1 | . . 1 . . . . . . . . Open DSF 1 | . . . . . . . . . 1 . Locate Traps 1 | . . 1 . . . . . . . . Patrol Status 1 | . . 1 . . . . . . . . Registered Components 1 | . 1 . . . . . . . . . Proto ID Catalog 1 | . . . . 1 . . . . . . Fabricator Hacks 1 | . . . . . . . . . 1 . Network Status 1 | . . . . . . . . . 1 . Repair Station Hacks 4 | . . . . . . 4 . . . . Scan Component 2 | . . . . . . 2 . . . . Repair 2 | . . . . . . 2 . . . . Recycling Unit Hacks . | . . . . . . . . . . . Scanalyzer 1 | . . . . . . . . . . 1 Insert Component 1 | . . . . . . . . . . 1 Garrison Access Hacks 1 | . . . . . . . 1 . . . Unlock Access 1 | . . . . . . . 1 . . . Unauthorized Hacks 10 | . 2 3 . . . 3 1 . 1 . Terminals 10 | . 2 3 . . . 3 1 . 1 . Botnet 10 | . 2 3 . . . 3 1 . 1 . Fabricators . | . . . . . . . . . . . Repair Stations . | . . . . . . . . . . . Recycling Units . | . . . . . . . . . . . Scanalyzers . | . . . . . . . . . . . Garrison Access . | . . . . . . . . . . . Data Cores Recovered . | . . . . . . . . . . . Used . | . . . . . . . . . . . Hacking Detections 19 | . 3 4 . . . 3 2 1 4 2 Full Trace Events . | . . . . . . . . . . . Feedback Events . | . . . . . . . . . . . Feedback Blocked . | . . . . . . . . . . . Robot Schematics Acquired . | . . . . . . . . . . . Robots Built . | . . . . . . . . . . . Authchips . | . . . . . . . . . . . Time . | . . . . . . . . . . . Total Robot Build Rating . | . . . . . . . . . . . Part Schematics Acquired . | . . . . . . . . . . . Parts Built . | . . . . . . . . . . . Authchips . | . . . . . . . . . . . Time . | . . . . . . . . . . . Total Part Build Rating . | . . . . . . . . . . . Parts Repaired 2 | . . . . . . 2 . . . . Time 74 | . . . . . . 74 . . . . Parts Recycled . | . . . . . . . . . . . Recycled Matter . | . . . . . . . . . . . Retrieved Matter . | . . . . . . . . . . . Retrieved Components . | . . . . . . . . . . . Parts Scanalyzed 1 | . . . . . . . . . . 1 Part Schematics Acquired . | . . . . . . . . . . . Parts Damaged . | . . . . . . . . . . . Bothacking | -11 -10 -9 -9 -9 -8 -8 -7 -7 -6 -5 ------------ Run | Yrd Mat Mat Min Exi Min Mat Fac Gar Fac Fac Used RIF Installer . | . . . . . . . . . . . Robots Hacked . | . . . . . . . . . . . Non-combat . | . . . . . . . . . . . Combat . | . . . . . . . . . . . Robot Hacks Applied . | . . . . . . . . . . . Relay Couplers Released 3 | . . . . . . . . 3 . . Machine Destruction 3 | . . . . . . . . 3 . . Fabnet Peak Effective % . | . . . . . . . . . . . Robots Rewired 6 | . . . . . . . . 6 . . Allies Hacked . | . . . . . . . . . . . Hacks Repelled . | . . . . . . . . . . . Allies | -11 -10 -9 -9 -9 -8 -8 -7 -7 -6 -5 -------- Run | Yrd Mat Mat Min Exi Min Mat Fac Gar Fac Fac Total Allies 6 | . . . . . . . . 6 . . Largest Group 6 | . . . . . . . . 6 . . Highest-Rated Group 102 | . . . . . . . . 102 . . Highest-Rated Ally 20 | . . . . . . . . 20 . . Initial Warlord ECA Mod 3 | . . . . . . . . . 2 1 Total Orders . | . . . . . . . . . . . Ally Attacks 14 | . . . . . . . . 14 . . Total Damage 309 | . . . . . . . . 309 . . Kills 4 | . . . . . . . . 4 . . Allies Corrupted . | . . . . . . . . . . . Allies Melted . | . . . . . . . . . . . Intel | -11 -10 -9 -9 -9 -8 -8 -7 -7 -6 -5 ------- Run | Yrd Mat Mat Min Exi Min Mat Fac Gar Fac Fac Active Infowar (turns) 1971 | . . . . . . 1246 725 . . . Structural 1971 | . . . . . . 1246 725 . . . Robot Analysis Total . | . . . . . . . . . . . Derelict Logs Recovered 1 | . . . 1 . . . . . . . Drone Launches . | . . . . . . . . . . . Drone Recoveries . | . . . . . . . . . . . Exploration | -11 -10 -9 -9 -9 -8 -8 -7 -7 -6 -5 ------------- Run | Yrd Mat Mat Min Exi Min Mat Fac Gar Fac Fac Turns Passed 13817 | 144 447 648 344 646 398 1247 1675 3954 2028 2286 Spaces Moved 6930 | 84 199 306 200 489 221 523 1005 1816 989 1098 Core 659 | 4 . . . . . . . . 386 269 Treads 2661 | 80 199 77 . . . 3 . 1703 577 22 Legs 58 | . . . . . . . . . . 58 Wheels 3550 | . . 229 200 489 221 520 1005 113 26 747 Hover . | . . . . . . . . . . . Flight 2 | . . . . . . . . . . 2 Fastest Speed 35 | 50 160 115 130 130 115 115 130 130 50 35 Average Speed 133 | 154 160 135 130 130 119 125 130 158 116 111 Slowest Speed 1300 | 160 160 240 130 145 145 240 130 240 1300 450 Overloaded Moves . | . . . . . . . . . . . Propulsion Burnouts . | . . . . . . . . . . . Robots Hopped . | . . . . . . . . . . . Potential Cave-ins . | . . . . . . . . . . . Cave-ins Triggered . | . . . . . . . . . . . Exploration Rate (%) 37 | 5 36 30 47 71 57 35 21 76 22 17 Regions Visited 10 Branch Regions 3 Pre-discovered Areas 1 | . . . . 1 . . . . . . Known Exits Taken 2 | . . . 1 . . . 1 . . . Unknown Exits Taken 7 | 1 1 1 . 1 1 1 . . 1 . Scrap Searched . | . . . . . . . . . . . Spaces Dug 8 | . . . . . . . 4 3 1 . Terrain Destroyed 180 | . . 2 5 . . . 36 15 66 56 Melee . | . . . . . . . . . . . Projectile 45 | . . . . . . . 4 11 30 . AOE 135 | . . 2 5 . . . 32 4 36 56 Terrain Rammed . | . . . . . . . . . . . Walls Destroyed . | . . . . . . . . . . . Machines Disabled . | . . . . . . . . . . . Actions | -11 -10 -9 -9 -9 -8 -8 -7 -7 -6 -5 --------- Run | Yrd Mat Mat Min Exi Min Mat Fac Gar Fac Fac Total 10619 | 96 298 493 251 496 324 1063 1337 2658 1646 1957 Wait 2704 | 1 74 116 30 . 80 463 256 543 479 662 Move 6917 | 83 198 305 199 488 220 522 1004 1812 988 1098 Hop . | . . . . . . . . . . . Pick Up 102 | 6 3 18 . . 2 21 13 18 9 12 Fast Attach 71 | 4 1 5 . 2 . 3 5 10 7 34 Attach 83 | 2 1 5 5 . 5 10 13 9 16 17 Detach 41 | . . 4 . 3 1 4 11 5 6 7 Swap 20 | . 1 . . 1 . 4 . 5 6 3 Drop 81 | . 3 12 . 2 . 9 11 27 9 8 Fire 438 | . 17 28 17 . 16 27 24 128 120 61 Melee 54 | . . . . . . . . . . 54 Ram 5 | . . . . . . . . . 4 1 Kick . | . . . . . . . . . . . Crush 2 | . . . . . . . . . 2 . Escape Stasis . | . . . . . . . . . . . Rewire 101 | . . . . . . . . 101 . . Trap . | . . . . . . . . . . . Miscellaneous . | . . . . . . . . . . . Route ------- -11/Scrapyard -10/Materials -9/Materials (discovered 2 exits: *Mat / [*Min]) -9/Mines -9/Exiles -8/Mines -8/Materials -7/Factory -7/Garrison (discovered 3 exits: *Fac x3) -6/Factory -5/Factory History --------- Turn | Location | Event 8 | -11/Scrapyard | Discovered new exit (range 15) 145 | -11/Scrapyard | Entered Materials 317 | -10/Materials | Build established: Mutant 580 | -10/Materials | Discovered new exit (range 7) 592 | -10/Materials | Entered another Materials area 592 | -9/Materials | Evolved 2 slots: Propulsion x2 852 | -9/Materials | Destroyed 7 combat bots 1006 | -9/Materials | Discovered new exit (range 16) 1185 | -9/Materials | Discovered new exit (range 15) 1240 | -9/Materials | Entered Mines 1287 | -9/Mines | Identified exit to Exiles 1507 | -9/Mines | Assembled infested the area 1553 | -9/Mines | Core integrity fell below 50% 1581 | -9/Mines | Lost 7 parts (1p2n1u3w) 1584 | -9/Mines | Entered Exiles 1617 | -9/Exiles | Met 8R-AWN 1636 | -9/Exiles | Met EX-HEX 1693 | -9/Exiles | Met EX-DEC 1719 | -9/Exiles | Learned location of Zion (-7) 1801 | -9/Exiles | Met EX-BIN 1827 | -9/Exiles | Aligned with FarCom system 1829 | -9/Exiles | Given EX-Vault access code 1886 | -9/Exiles | Opened EX-Vault 1890 | -9/Exiles | Found Prototype Energy Cannon 1890 | -9/Exiles | Identified Latent Energy Streamer 1895 | -9/Exiles | Found Prototype Energy Cannon 1895 | -9/Exiles | Identified Gui. Plasma Cannon 1938 | -9/Exiles | Warned to stay clear of 0b10 Research branches 2214 | -9/Exiles | Discovered new exit (range 12) 2230 | -9/Exiles | Left Exiles lab with Gui. Plasma Cannon 2230 | -9/Exiles | Entered Mines 2367 | -8/Mines | Core integrity fell below 20% 2405 | -8/Mines | Lost 3 parts (1p1n1u) 2613 | -8/Mines | Discovered new exit (range 13) 2628 | -8/Mines | Entered Materials 2628 | -8/Materials | Evolved 2 slots: Utility x2 3137 | -8/Materials | Build established: Scavenger-Mutant 3608 | -8/Materials | Met 7R-MNS 3667 | -8/Materials | Discovered new exit (range 3) 3806 | -8/Materials | Repaired Corrupted Lgt. Treads 3845 | -8/Materials | Repaired Reactive Plating 3875 | -8/Materials | Entered Factory 3875 | -7/Factory | Evolved 2 slots: Utility x1, Weapon x1 3876 | -7/Factory | Caught up to 7R-MNS 3960 | -7/Factory | Garrison activated, responded to threat 4514 | -7/Factory | Build established: Skirmisher 4888 | -7/Factory | Build established: Gunner 5545 | -7/Factory | Identified exit to Garrison 5550 | -7/Factory | Entered Garrison 5616 | -7/Garrison | Triggered checkpoint 5691 | -7/Garrison | Triggered checkpoint 5692 | -7/Garrison | Triggered checkpoint 6230 | -7/Garrison | Triggered checkpoint 6261 | -7/Garrison | Lost 3 allies 6310 | -7/Garrison | Discovered new exit (range 12) 6350 | -7/Garrison | Triggered checkpoint 6409 | -7/Garrison | Garrison Relay disabled 6533 | -7/Garrison | Build established: Tank 6779 | -7/Garrison | Spotted B-75 Beast 6780 | -7/Garrison | Spotted B-75 Beast 6918 | -7/Garrison | Attempted to access garrison exit controls, blocked by remote lockdown 6959 | -7/Garrison | Destroyed B-75 Beast 7203 | -7/Garrison | Triggered checkpoint 7560 | -7/Garrison | Discovered new exit (range 14) 7586 | -7/Garrison | Triggered checkpoint 7756 | -7/Garrison | Triggered checkpoint 7937 | -7/Garrison | Triggered checkpoint 8002 | -7/Garrison | Triggered checkpoint 8026 | -7/Garrison | Discovered new exit (range 14) 8218 | -7/Garrison | Triggered checkpoint 8342 | -7/Garrison | Build established: Scavenger-Tank 8877 | -7/Garrison | Triggered checkpoint 9060 | -7/Garrison | Attempted to access garrison exit controls, blocked by remote lockdown 9504 | -7/Garrison | Entered Factory 9504 | -6/Factory | Evolved 2 slots: Power x1, Utility x1 10204 | -6/Factory | First assault squad dispatched 11021 | -6/Factory | Lost 4 parts (2p1n1u) 11230 | -6/Factory | System corruption reached 10% 11276 | -6/Factory | Released all parts (4) 11280 | -6/Factory | Core integrity fell below 50% 11306 | -6/Factory | Lost 10 parts (2p1n3u4w) 11507 | -6/Factory | Discovered new exit (range 12) 11532 | -6/Factory | Entered another Factory area 11532 | -5/Factory | Evolved 2 slots: Utility x2 11571 | -5/Factory | Build established: Mutant 12132 | -5/Factory | First assault squad dispatched 12516 | -5/Factory | System corruption reached 10% 12553 | -5/Factory | Core integrity fell below 50% 12553 | -5/Factory | Released all parts (4) 12556 | -5/Factory | Destroyed 9 combat bots 12587 | -5/Factory | Lost 10 parts (1p3n3u3w) 13618 | -5/Factory | System corruption reached 30% 13688 | -5/Factory | Released all parts (3) 13708 | -5/Factory | Lost 13 parts (3p3n4u3w) 13804 | -5/Factory | Core integrity fell below 20% 13818 | -5/Factory | Destroyed by G-67 Veteran with Plasma Rifle Last Messages --------------- corrupted. 13708_ Welding Torch fried. 13708_ Terrain Scanner fried. 13710_ Dropped Great Maul. 13711_ Acquired 10 matter. 13714_ System corrupted: Heat flow error (+190). 13727_ Connecting with Terminal... 13729_ JT90NM9DBGDMJ8J:HZAD 13747_ System corrupted: Matter fused (-10). 13780_ HM8E,YDQD/U5&>KHAI HGFCI:W6NSZ 13809_ G-67 Veteran Flexi-carbon Leg severed. 13812_ Critical hit (Burn: +50). 13814_ G-67 Veteran Adv. Heat Sink severed. [Achievement: 5k Club] [Achievement: 10k Club] Map ----- +----------------------------------------------------+ | ????????## #???????????????????????????????????? | | ????????## #?????????##????????????????????????? | | ?????????# #?????#### #####????????????????????? | | ?????????# #????? #????????????????????? | | ?????????# ######## """"#????????????????????? | | ########## ## "##???????????????????? | | ## ## #???????????????????? | | ##%!%## ##???????????????????? | | ##! ## #???????????????????? | | # %[#| ! p #????????????????????? | | *#[ !%#!g =! p #????????????????????? | | %+[ *+g / = #????????????????????? | | =#= =# !%% ##????????????????????? | | # # %% #?????????????????????? | | ! # #?????????????????????? | | # = #?????????????????????? | | # # %! % % #?????????????????????? | | # # ########+###?????????????????????? | | ######### # % ### ###?????????????????????? | | ????????# ######## #?????????????????????? | | ????????# ##### ????????? | | ????????# !% T w ????????? | | ######### ##### ????????? | | %# ########mgig #?????????????????????? | | # #??????###g######??????????????????? | | """*"" # #????????#g@ #??????????????????? | | """"""%# ##########"" #??????????????????? | | """""" # h ^ #"" #??????????????????? | | """""" # #"T #??????????????????? | | + #"" #??????????????????? | | """""" # ^ #"" #??????????????????? | | """""" # h # #??????????????????? | | """""" ### ##### # #??????????????????? | | """""" #?# #???? # #??????????????????? | | #?# #????? # #??????????????????? | | ###########+#####? ########??????????????????? | | # #? ??????????????????? | | # # ??????????????????? | | !! # # ?????????????????????? | | ! # + """""""???????????????????????? | | # # """""?????w???????????????????? | | ####+## """ """ # """""?????????????????????????? | | # / """ """ #? """"??????????????????????????? | | # # """ """ #? ??????????????????????????? | | # ###########?? ?????????????????????????? | | #+## ^ ?????? ????????????????????????? | | ## ??? ????????????????????????? | | ## """""" """???? ""???????????????????????? | | + """""" ""?????? "????????????????????????? | | # """""" """????? T????????????????????????? | +----------------------------------------------------+ Best States ------------- Heat Dissipation 67 Coolant Potential 65 Energy Generation 29 Energy Capacity 500 Matter Stores 300 Matter Capacity 300 Sight Range 16 Terrain Scan Density 10 EM Shielding 2 Armor Coverage 600 Resistance: KI 20 Resistance: TH 20 Core Shielding 30 Evasion (%) 55 Targeting Accuracy 20 Target Analysis 6 Core Analysis 9 Recoil Reduction 4 Particle Charging 20 Kinecelleration 40 Force Boost 20 Item Schematics ----------------- None Robot Schematics ------------------ None Fabricated ------------ Nothing Repaired ---------- Lgt. Treads | 76% | -8/Materials | Corrupted Reactive Plating | 61% | -8/Materials Alien Tech Used ----------------- None Achievements -------------- 10k Club 5k Club A New Friend Crack Shot Dramatic Entrance Loot Pinata Made in Tau Ceti IV Novice Programmer Oh No You Don't! Overkill Part-time Mechanic Please Form A Line Power Corrupts Quantum Hacking Serviceable Loadout Significant Disruption System Compromised True Hacker Z1$+NX3F=JRE3_ZNQR Challenges ------------ None Game ------ Seed AssaultAssemblyAnalyzer Manual? 0 Play Time 03:27:40 Cumulative 4.3 hours Start 2025.07.05 @ 18:53:35 End 2025.07.07 @ 20:03:31 Sessions 3 Manual Loads 0 Difficulty Rogue Special Mode None Game No. 3 Rogue 3 Adventurer 0 Explorer 0 Win Type - Total 0 Types 0/0/0/0/0/0/0/0/0/0 Lore% 2 Gallery% 7 Achievement% 11 Wizard Run 0 Options --------- Layout 1 ASCII 0 Keyboard 0 Movement Numpad Keybinds 0 Fullscreen 1 Font 24/X11 Map View 50x35 Zoom Use 0% Tactical HUD 1 Map Filters NONE Filters NONE Steam 1 RUN: 7f3f67d3-4d70-4894-a767-4bc24aa347be